fUSD/lending_fUSD_20240503
["ID","MTS","AMOUNT","RATE_DAILY","PERIOD"]
[325344297,1714745454262,-540.76,0.00043835,30]
[325344298,1714745454272,-2427.39,0.00043835,30]
[325344299,1714745454281,-837.33,0.00043835,30]
[325344300,1714745454291,-500.0,0.00043835,30]
[325344301,1714745454300,-67806.78,0.00043835,30]
[325344302,1714745454310,-5252.47,0.00043835,30]
[325344303,1714745454319,-1029.09,0.00043835,30]
[325344304,1714745454328,-947.73,0.00043835,30]
[325344305,1714745454337,-500.0,0.00043835,30]
[325344306,1714745454346,-5714.68,0.00043835,30]
[325344307,1714745454356,-18554.99,0.00043835,30]
[325344308,1714745454365,-500.0,0.00043835,30]
[325344309,1714745454378,-4193.67,0.00043835,30]
[325344310,1714745454388,-4487.9,0.00043835,30]
[325344311,1714745454397,-807.2,0.00043835,30]
[325344312,1714745454406,-500.0,0.00043835,30]
[325344313,1714745454415,-500.0,0.00043835,30]
[325344314,1714745454424,-500.0,0.00043835,30]
[325344315,1714745454434,-500.0,0.00043835,30]
[325344316,1714745454443,-575.76,0.00043835,30]
[325344317,1714745454452,-500.0,0.00043835,30]
[325344318,1714745454461,-502.23950545,0.00043835,30]
[325344319,1714745454470,-500.0,0.00043835,30]
[325344320,1714745454480,-1463.22,0.00043835,30]
[325344321,1714745454489,-1963.68,0.00043835,30]
[325344322,1714745454498,-500.0,0.00043835,30]
[325344323,1714745454507,-500.0,0.00043835,30]
[325344324,1714745454516,-7113.38,0.00043835,30]
[325344325,1714745454526,-3351.98,0.00043835,30]
[325344326,1714745454538,-1613.56,0.00043835,30]
[325344327,1714745454547,-500.0,0.00043835,2]
[325344328,1714745454557,-5259.31,0.00043835,30]
[325344329,1714745454568,-500.0,0.00043835,30]
[325344330,1714745454578,-500.0,0.00043835,30]
[325344331,1714745454588,-1918.31,0.00043835,30]
[325344332,1714745454598,-4694.75,0.00043835,30]
[325344333,1714745454609,-500.0,0.00043835,30]
[325344334,1714745454621,-500.0,0.00043835,30]
[325344335,1714745454631,-500.0,0.00043835,30]
[325344336,1714745454641,-500.0,0.00043835,30]
[325344337,1714745454651,-2845.79,0.00043835,30]
[325344338,1714745454661,-2132.98,0.00043835,7]
[325344339,1714745454672,-908.99,0.00043835,30]
[325344340,1714745454682,-2896.16,0.00043835,30]
[325344341,1714745454692,-500.0,0.00043835,30]
[325344342,1714745454702,-502.55096841,0.00043835,30]
[325344343,1714745454712,-1817.32,0.00043835,30]
[325344344,1714745454723,-500.0,0.00043835,30]
[325344345,1714745454732,-2217.25,0.00043835,30]
[325344346,1714745454742,-500.0,0.00043835,30]
[325344347,1714745454752,-500.0,0.00043835,30]
[325344348,1714745454763,-500.0,0.00043835,30]
[325344349,1714745454775,-500.0,0.00043835,30]
[325344350,1714745454785,-4256.41,0.00043835,30]
[325344351,1714745454795,-1684.02,0.00043835,30]
[325344352,1714745454805,-1071.25,0.00043835,30]
[325344353,1714745454816,-581.64,0.00043835,30]
[325344354,1714745454826,-500.0,0.00043835,30]
[325344355,1714745454837,-500.0,0.00043835,30]
[325344356,1714745454847,-5502.37,0.00043835,30]
[325344357,1714745454858,-500.0,0.00043835,30]
[325344358,1714745454878,-8428.88,0.00043835,30]
[325344359,1714745454890,-9117.6,0.00043835,30]
[325344360,1714745454900,-1075.78,0.00043835,30]
[325344361,1714745454911,-500.0,0.00043835,30]
[325344362,1714745454922,-3279.13,0.00043835,30]
[325344363,1714745454932,-15909.96,0.00043835,30]
[325344364,1714745454943,-4953.73,0.00043835,30]
[325344365,1714745454953,-3008.08,0.00043835,30]
[325344366,1714745454964,-1253.78,0.00043835,30]
[325344367,1714745454975,-548.31,0.00043835,30]
[325344368,1714745454985,-588.45,0.00043835,30]
[325344369,1714745454996,-500.0,0.00043835,30]
[325344370,1714745455006,-505.26288828,0.00043835,30]
[325344371,1714745455016,-500.0,0.00043835,30]
[325344372,1714745455027,-1837.15,0.00043835,30]
[325344373,1714745455037,-3406.01,0.00043835,30]
[325344374,1714745455047,-875.21,0.00043835,30]
[325344375,1714745455057,-1229.17,0.00043835,30]
[325344376,1714745455068,-500.0,0.00043835,30]
[325344377,1714745455078,-5805.53,0.00043835,30]
[325344378,1714745455088,-500.0,0.00043835,30]
[325344379,1714745455098,-988.38,0.00043835,30]
[325344380,1714745455109,-670.18,0.00043835,30]
[325344381,1714745455120,-13533.27,0.00043835,30]
[325344382,1714745455130,-500.0,0.00043835,30]
[325344383,1714745455140,-2238.81,0.00043835,30]
[325344384,1714745455151,-1170.22,0.00043835,30]
[325344385,1714745455161,-1984.29,0.00043835,30]
[325344386,1714745455171,-1248.71,0.00043835,30]
[325344387,1714745455182,-2360.33,0.00043835,30]
[325344388,1714745455192,-437.63468295,0.00043835,30]
[325344389,1714745455203,-500.0,0.00043835,30]
[325344390,1714745455213,-500.0,0.00043835,30]
[325344391,1714745455224,-1161.43,0.00043835,30]
[325344392,1714745455234,-518.5888693,0.00043835,30]
[325344393,1714745455245,-12484.68,0.00043835,30]
[325344394,1714745455255,-4371.77,0.00043835,30]
[325344395,1714745455265,-1537.0,0.00043835,30]
[325344396,1714745455275,-7572.41,0.00043835,30]
[325344397,1714745455286,-805.25,0.00043835,30]
[325344398,1714745455296,-500.0,0.00043835,30]
[325344399,1714745455306,-695.96,0.00043835,30]
[325344400,1714745455317,-8658.52,0.00043835,30]
[325344401,1714745455329,-500.0,0.00043835,30]
[325344402,1714745455340,-2423.99,0.00043835,30]
[325344403,1714745455351,-1762.55,0.00043835,30]
[325344404,1714745455361,-500.0,0.00043835,30]
[325344405,1714745455374,-1573.98,0.00043835,30]
[325344406,1714745455385,-816.72,0.00043835,30]
[325344407,1714745455395,-11042.82,0.00043835,30]
[325344408,1714745455406,-2017.56,0.00043835,30]
[325344409,1714745455416,-321.00829821,0.00043835,30]
[325344410,1714745455426,-500.0,0.00043835,30]
[325344411,1714745455436,-704.97,0.00043835,30]
[325344412,1714745455447,-500.0,0.00043835,30]
[325344413,1714745455457,-1958.49,0.00043835,30]
[325344414,1714745455467,-500.0,0.00043835,30]
[325344415,1714745455478,-500.0,0.00043835,30]
[325344416,1714745455488,-10592.63,0.00043835,30]
[325344417,1714745455498,-511.38,0.00043835,30]
[325344418,1714745455509,-2813.84,0.00043835,30]
[325344419,1714745455519,-500.0,0.00043835,30]
[325344420,1714745455529,-746.08,0.00043835,30]
[325344421,1714745455539,-6215.61,0.00043835,21]
[325344422,1714745455550,-4486.16,0.00043835,30]
[325344423,1714745455560,-500.0,0.00043835,30]
[325344424,1714745455571,-500.0,0.00043835,30]
[325344425,1714745455581,-57271.23,0.00043835,30]
[325344426,1714745455592,-500.0,0.00043835,30]
[325344427,1714745455603,-1299.92,0.00043835,30]
[325344428,1714745455614,-500.0,0.00043835,30]
[325344429,1714745455626,-500.0,0.00043835,30]
[325344430,1714745455637,-500.0,0.00043835,30]
[325344431,1714745455648,-4838.82,0.00043835,30]
[325344432,1714745455659,-1011.36,0.00043835,30]
[325344433,1714745455670,-500.0,0.00043835,30]
[325344434,1714745455681,-1083.58,0.00043835,30]
[325344435,1714745455692,-500.0,0.00043835,30]
[325344436,1714745455704,-2715.83,0.00043835,30]
[325344437,1714745455716,-500.0,0.00043835,7]
[325344438,1714745455727,-1566.13,0.00043835,30]
[325344439,1714745455738,-642.8,0.00043835,30]
[325344440,1714745455749,-500.0,0.00043835,30]
[325344441,1714745455760,-3716.33,0.00043835,30]
[325344442,1714745455770,-500.0,0.00043835,30]
[325344443,1714745455781,-14440.29,0.00043835,30]
[325344444,1714745455792,-500.0,0.00043835,30]
[325344445,1714745455802,-2448.52,0.00043835,30]
[325344446,1714745455813,-500.0,0.00043835,30]
[325344447,1714745455824,-500.0,0.00043835,30]
[325344448,1714745455835,-500.0,0.00043835,30]
[325344449,1714745455846,-715.26,0.00043835,30]
[325344450,1714745455857,-8460.38,0.00043835,30]
[325344451,1714745455875,-500.0,0.00043835,30]
[325344452,1714745455886,-565.25,0.00043835,30]
[325344453,1714745455896,-500.0,0.00043835,30]
[325344454,1714745455907,-3609.14,0.00043835,30]
[325344455,1714745455921,-500.0,0.00043835,30]
[325344456,1714745455933,-500.0,0.00043835,30]
[325344457,1714745455944,-800.74,0.00043835,30]
[325344458,1714745455954,-8887.56,0.00043835,30]
[325344459,1714745455965,-2484.88,0.00043835,30]
[325344460,1714745455975,-500.0,0.00043835,30]
[325344461,1714745455986,-13207.51,0.00043835,30]
[325344462,1714745455997,-3952.89,0.00043835,30]
[325344463,1714745456016,-500.0,0.00043835,30]
[325344464,1714745456036,-500.0,0.00043835,30]
[325344465,1714745456049,-3202.89,0.00043835,30]
[325344466,1714745456066,-500.0,0.00043835,30]
[325344467,1714745456086,-8238.86,0.00043835,30]
[325344468,1714745456103,-500.0,0.00043835,30]
[325344469,1714745456124,-200.54885542,0.00043835,30]
[325344470,1714745456139,-500.0,0.00043835,30]
[325344471,1714745456156,-3205.2,0.00043835,30]
[325344472,1714745456172,-500.0,0.00043835,30]
[325344473,1714745456184,-2710.49,0.00043835,30]
[325344474,1714745456200,-2509.23,0.00043835,30]
[325344475,1714745456216,-639.01947706,0.00043835,30]
[325344476,1714745456233,-670.63,0.00043835,30]
[325344477,1714745456251,-500.0,0.00043835,30]
[325344478,1714745456263,-500.0,0.00043835,30]
[325344479,1714745456276,-500.0,0.00043835,30]
[325344480,1714745456292,-1000.0,0.00043835,2]
[325344481,1714745456305,-500.0,0.00043835,30]
[325344482,1714745456320,-2012.74,0.00043835,30]
[325344483,1714745456335,-500.0,0.00043835,30]
[325344484,1714745456347,-1527.36,0.00043835,30]
[325344485,1714745456362,-500.0,0.00043835,30]
[325344486,1714745456380,-500.0,0.00043835,30]
[325344487,1714745456393,-1077.31,0.00043835,30]
[325344488,1714745456413,-500.0,0.00043835,30]
[325344489,1714745456427,-500.0,0.00043835,30]
[325344490,1714745456440,-500.0,0.00043835,30]
[325344491,1714745456455,-696.79,0.00043835,30]
[325344492,1714745456468,-2444.34,0.00043835,30]
[325344493,1714745456482,-500.0,0.00043835,30]
[325344494,1714745456495,-1337.88,0.00043835,30]
[325344495,1714745456509,-5477.91,0.00043835,30]
[325344496,1714745456522,-500.0,0.00043835,30]
[325344497,1714745456536,-500.0,0.00043835,30]
[325344498,1714745456550,-2477.92,0.00043835,30]
[325344499,1714745456564,-500.0,0.00043835,30]
[325344500,1714745456578,-500.0,0.00043835,30]
[325344501,1714745456591,-500.0,0.00043835,30]
[325344502,1714745456606,-1197.99,0.00043835,30]
[325344503,1714745456620,-500.0,0.00043835,30]
[325344504,1714745456635,-2977.68,0.00043835,30]
[325344505,1714745456648,-5510.11,0.00043835,30]
[325344506,1714745456662,-500.0,0.00043835,30]
[325344507,1714745456677,-500.0,0.00043835,30]
[325344508,1714745456691,-502.14240655,0.00043835,30]
[325344509,1714745456706,-500.0,0.00043835,30]
[325344510,1714745456720,-550.55,0.00043835,30]
[325344511,1714745456734,-500.0,0.00043835,30]
[325344512,1714745456749,-893.9,0.00043835,30]
[325344513,1714745456762,-1138.82,0.00043835,7]
[325344514,1714745456776,-500.0,0.00043835,30]
[325344515,1714745456790,-500.0,0.00043835,30]
[325344516,1714745456805,-3173.9,0.00043835,30]
[325344517,1714745456819,-557.18,0.00043835,30]
[325344518,1714745456833,-1108.67,0.00043835,30]
[325344519,1714745456846,-377.43906349,0.00043835,30]
[325344520,1714745456861,-3349.05,0.00043835,30]
[325344521,1714745456877,-500.0,0.00043835,30]
[325344522,1714745456890,-542.96,0.00043835,30]
[325344523,1714745456903,-500.0,0.00043835,30]
[325344524,1714745456922,-1398.18,0.00043835,30]
[325344525,1714745456935,-623.3,0.00043835,30]
[325344526,1714745456948,-16164.42,0.00043835,30]
[325344527,1714745456962,-3995.4,0.00043835,30]
[325344528,1714745456976,-38992.43,0.00043835,30]
[325344529,1714745456989,-500.0,0.00043835,30]
[325344530,1714745457003,-1774.93,0.00043835,30]
[325344531,1714745457016,-500.0,0.00043835,30]
[325344532,1714745457029,-500.0,0.00043835,30]
[325344533,1714745457043,-3702.74,0.00043835,30]
[325344534,1714745457056,-2199.11,0.00043835,30]
[325344535,1714745457070,-500.0,0.00043835,30]
[325344536,1714745457083,-500.0,0.00043835,30]
[325344537,1714745457097,-500.0,0.00043835,30]
[325344538,1714745457110,-995.75003548,0.0004384,2]
[325344539,1714745457124,-995.75003548,0.0004384,2]
[325344540,1714745457137,-995.75003548,0.0004384,2]
[325344541,1714745457150,-995.75003548,0.0004384,2]
[325344542,1714745457164,-995.75003548,0.0004384,2]
[325344543,1714745457177,-995.75003548,0.0004384,2]
[325344544,1714745457190,-995.75003548,0.0004384,2]
[325344545,1714745457203,-995.75003548,0.0004384,2]
[325344546,1714745457216,-995.75003548,0.0004384,2]
[325344547,1714745457230,-995.75003548,0.0004384,2]
[325344548,1714745457242,-995.75003548,0.0004384,2]
[325344549,1714745457256,-995.75003548,0.0004384,2]
[325344550,1714745457269,-995.75003548,0.0004384,2]
[325344551,1714745457283,-995.75003548,0.0004384,2]
[325344552,1714745457296,-995.75003548,0.0004384,2]
[325344553,1714745457310,-995.75003548,0.0004384,2]
[325344554,1714745457323,-995.75003548,0.0004384,2]
[325344555,1714745457336,-995.75003548,0.0004384,2]
[325344556,1714745457349,-995.75003548,0.0004384,2]
[325344557,1714745457362,-996.25,0.0004384,2]
[325344558,1714745457379,-3983.0751419,0.0004384,2]
[325344559,1714745457392,-3983.0751419,0.0004384,2]
[325344560,1714745457406,-3983.0751419,0.0004384,2]
[325344561,1714745457420,-3983.0751419,0.0004384,2]
[325344562,1714745457434,-3983.0751419,0.0004384,2]
[325344563,1714745457447,-3983.0751419,0.0004384,2]
[325344564,1714745457460,-3983.0751419,0.0004384,2]
[325344565,1714745457472,-3983.0751419,0.0004384,2]
[325344566,1714745457486,-3983.0751419,0.0004384,2]
[325344567,1714745457498,-3983.0751419,0.0004384,2]
[325344568,1714745457511,-3983.0751419,0.0004384,2]
[325344569,1714745457524,-3983.0751419,0.0004384,2]
[325344570,1714745457537,-3983.0751419,0.0004384,2]
[325344571,1714745457551,-3983.0751419,0.0004384,2]
[325344572,1714745457564,-3983.0751419,0.0004384,2]
[325344573,1714745457577,-330.92485373,0.0004384,2]
[325344574,1714745457591,-330.92485373,0.0004384,2]
[325344575,1714745457604,-330.92485373,0.0004384,2]
[325344576,1714745457618,-330.92485373,0.0004384,2]
[325344577,1714745457632,-330.92485373,0.0004384,2]
[325344578,1714745457645,-330.92485373,0.0004384,2]
[325344579,1714745457658,-330.92485373,0.0004384,2]
[325344580,1714745457671,-330.92485373,0.0004384,2]
[325344581,1714745457685,-330.92485373,0.0004384,2]
[325344582,1714745457699,-330.92485373,0.0004384,2]
[325344583,1714745457712,-330.92485373,0.0004384,2]
[325344584,1714745457726,-330.92485373,0.0004384,2]
[325344585,1714745457740,-330.92485373,0.0004384,2]
[325344586,1714745457753,-330.92485373,0.0004384,2]
[325344587,1714745457766,-330.92485373,0.0004384,2]
[325344588,1714745457779,-330.92485373,0.0004384,2]
[325344589,1714745457793,-330.92485373,0.0004384,2]
[325344590,1714745457805,-330.92485373,0.0004384,2]
[325344591,1714745457818,-330.92485373,0.0004384,2]
[325344592,1714745457830,-331.42,0.0004384,2]
[325344593,1714745457843,-1323.7744149,0.0004384,2]
[325344594,1714745457856,-1323.7744149,0.0004384,2]
[325344595,1714745457874,-1323.7744149,0.0004384,2]
[325344596,1714745457887,-1323.7744149,0.0004384,2]
[325344597,1714745457900,-1323.7744149,0.0004384,2]
[325344598,1714745457917,-1323.7744149,0.0004384,2]
[325344599,1714745457930,-1323.7744149,0.0004384,2]
[325344600,1714745457943,-1323.7744149,0.0004384,2]
[325344601,1714745457957,-1323.7744149,0.0004384,2]
[325344602,1714745457969,-1323.7744149,0.0004384,2]
[325344603,1714745457982,-1323.7744149,0.0004384,2]
[325344604,1714745457995,-1323.7744149,0.0004384,2]
[325344605,1714745458008,-1323.7744149,0.0004384,2]
[325344606,1714745458021,-1323.7744149,0.0004384,2]
[325344607,1714745458034,-1323.7744149,0.0004384,2]
[325344608,1714745458047,-152.35828545,0.0004384,2]
[325344609,1714745458060,-152.35828545,0.0004384,2]
[325344610,1714745458073,-152.35828545,0.0004384,2]
[325344611,1714745458085,-152.35828545,0.0004384,2]
[325344612,1714745458099,-152.35828545,0.0004384,2]
[325344613,1714745458111,-152.35828545,0.0004384,2]
[325344614,1714745458126,-152.35828545,0.0004384,2]
[325344615,1714745458139,-152.35828545,0.0004384,2]
[325344616,1714745458149,-152.35828545,0.0004384,2]
[325344617,1714745458159,-152.85,0.0004384,2]
[325344618,1714745458168,-304.7915709,0.0004384,2]
[325344619,1714745458178,-304.7915709,0.0004384,2]
[325344620,1714745458187,-304.7915709,0.0004384,2]
[325344621,1714745458197,-304.7915709,0.0004384,2]
[325344622,1714745458206,-304.7915709,0.0004384,2]
[325344623,1714745458216,-304.7915709,0.0004384,2]
[325344624,1714745458225,-304.7915709,0.0004384,2]
[325344625,1714745458235,-304.7915709,0.0004384,2]
[325344626,1714745458244,-304.7915709,0.0004384,2]
[325344627,1714745458254,-304.7915709,0.0004384,2]
[325344628,1714745458264,-304.7915709,0.0004384,2]
[325344629,1714745458273,-304.7915709,0.0004384,2]
[325344630,1714745458282,-304.7915709,0.0004384,2]
[325344631,1714745458292,-304.7915709,0.0004384,2]
[325344632,1714745458302,-304.7915709,0.0004384,2]
[325344633,1714745458312,-336.94118572,0.0004384,2]
[325344634,1714745458321,-336.94118572,0.0004384,2]
[325344635,1714745458330,-336.94118572,0.0004384,2]
[325344636,1714745458339,-336.94118572,0.0004384,2]
[325344637,1714745458349,-336.94118572,0.0004384,2]
[325344638,1714745458359,-336.94118572,0.0004384,2]
[325344639,1714745458369,-336.94118572,0.0004384,2]
[325344640,1714745458379,-336.94118572,0.0004384,2]
[325344641,1714745458389,-336.94118572,0.0004384,2]
[325344642,1714745458399,-336.94118572,0.0004384,2]
[325344643,1714745458410,-336.94118572,0.0004384,2]
[325344644,1714745458420,-336.94118572,0.0004384,2]
[325344645,1714745458430,-336.94118572,0.0004384,2]
[325344646,1714745458439,-336.94118572,0.0004384,2]
[325344647,1714745458449,-336.94118572,0.0004384,2]
[325344648,1714745458458,-336.94118572,0.0004384,2]
[325344649,1714745458468,-336.94118572,0.0004384,2]
[325344650,1714745458478,-336.94118572,0.0004384,2]
[325344651,1714745458488,-336.94118572,0.0004384,2]
[325344652,1714745459035,-337.44,0.0004384,2]
[325344653,1714745459059,-1347.83974288,0.0004384,2]
[325344654,1714745459089,-1347.83974288,0.0004384,2]
[325344655,1714745459103,-1347.83974288,0.0004384,2]
[325344656,1714745459113,-1347.83974288,0.0004384,2]
[325344657,1714745459123,-1347.83974288,0.0004384,2]
[325344658,1714745459133,-1347.83974288,0.0004384,2]
[325344659,1714745459143,-1347.83974288,0.0004384,2]
[325344660,1714745459152,-1347.83974288,0.0004384,2]
[325344661,1714745459162,-1347.83974288,0.0004384,2]
[325344662,1714745459172,-1347.83974288,0.0004384,2]
[325344663,1714745459182,-1347.83974288,0.0004384,2]
[325344664,1714745459192,-1347.83974288,0.0004384,2]
[325344665,1714745459201,-1347.83974288,0.0004384,2]
[325344666,1714745459210,-1347.83974288,0.0004384,2]
[325344667,1714745459219,-1347.83974288,0.0004384,2]
[325344668,1714745459228,-788.0,0.0004386,30]
[325344669,1714745459238,-488.0,0.0004386,30]
[325344670,1714745459247,-150.0,0.00043865,2]
[325344671,1714745459257,-150.0,0.00043867,30]
[325344672,1714745459266,-1000.0,0.0004389,31]
[325344673,1714745459275,-1006.81745049,0.00043899,2]
[325344674,1714745459285,-1005.89459234,0.000439,2]
[325344675,1714745459294,-158.75,0.000439,7]
[325344676,1714745459303,-153.74670147,0.000439,18]
[325344677,1714745459313,-318.60427582,0.000439,2]
[325344678,1714745459322,-500.0,0.00043931,34]
[325344679,1714745459332,-150.0,0.00043948,2]
[325344680,1714745459341,-300.0,0.00043966,2]
[325344681,1714745459350,-150.0,0.00043975,2]
[325344682,1714745459360,-150.0,0.00043995,2]
[325344683,1714745459370,-29032.2846092,0.00043997,2]
[325344684,1714745459380,-3819.8693339,0.00043997,2]
[325344685,1714745459391,-991.4360518,0.00043997,2]
[325344686,1714745459400,-515283.37762078,0.00044,60]
[325344687,1714745459410,-24241.39462365,0.00044,7]
[325344688,1714745459419,-12625.0,0.00044,2]
[325344689,1714745459429,-60969.67296316,0.00044,2]
[325344690,1714745459439,-1000000.0,0.00044,60]
[325344691,1714745459450,-358739.09755941,0.00044,60]
[325344692,1714745459470,-423396.89926276,0.00044,60]
[325344693,1714745459481,-569.89984797,0.00044,60]
[325344694,1714745459493,-707.13760228,0.00044,60]
[325344695,1714745459505,-5730.0,0.00044,60]
[325344696,1714745459517,-17238.28337544,0.00044,60]
[325344697,1714745459529,-6542.9,0.00044,60]
[325344698,1714745459540,-815.0,0.00044,60]
[325344699,1714745460216,-586.63,0.00043835,30]
[325344700,1714745460226,-2613.39606875,0.00044,60]
[325344701,1714745460237,-2347.67562055,0.00044,60]
[325344702,1714745460249,-24719.3001877,0.00044,60]
[325344703,1714745460261,-2085.25287302,0.00044,60]
[325344704,1714745460272,-258.16788,0.00044,60]
[325344705,1714745460283,-154236.98972212,0.00044,60]
[325344706,1714745460293,-260.0,0.00044,30]
[325344707,1714745460303,-343521.65269922,0.00044,60]
[325344708,1714745460518,-3922.10371693,0.00044,60]
[325344709,1714745460529,-284.65086766,0.00044,60]
[325344710,1714745460830,-155.0,0.00027976,2]
[325344711,1714745460840,-420.0,0.00044,60]
[325344712,1714745461304,-2362.15552941,0.00027976,2]
[325344713,1714745461314,-4999.99,0.00042,120]
[325344714,1714745461324,-651851.59271619,0.00044,60]
[325344715,1714745461334,-1000000.0,0.00044,60]
[325344716,1714745461344,-1000000.0,0.00044,60]
[325344717,1714745461354,-1002.0,0.00044,120]
[325344718,1714745461364,-1000.0,0.00044,120]
[325344719,1714745461377,-2290.69028126,0.00044,4]
[325344720,1714745461388,-3359.4069857,0.00044,4]
[325344721,1714745461397,-7195.30191484,0.00044,30]
[325344722,1714745461407,-215.1575341,0.00044,30]
[325344723,1714745461417,-16778.87800108,0.00044,4]
[325344724,1714745461426,-260.849352,0.00044,14]
[325344725,1714745461436,-283.264101,0.00044,14]
[325344726,1714745461446,-151.0,0.00044,14]
[325344727,1714745461455,-151.0,0.00044,14]
[325344728,1714745461465,-151.0,0.00044,14]
[325344729,1714745461475,-151.0,0.00044,14]
[325344730,1714745461484,-151.0,0.00044,14]
[325344731,1714745461494,-151.0,0.00044,14]
[325344732,1714745461503,-151.0,0.00044,14]
[325344733,1714745461513,-151.0,0.00044,14]
[325344734,1714745461522,-174.778651,0.00044,14]
[325344735,1714745461532,-174.778651,0.00044,14]
[325344736,1714745461542,-174.778651,0.00044,14]
[325344737,1714745461552,-174.778651,0.00044,14]
[325344738,1714745461562,-151.0,0.00044,14]
[325344739,1714745461572,-151.0,0.00044,14]
[325344740,1714745461582,-151.0,0.00044,14]
[325344741,1714745461592,-244.629602,0.00044,14]
[325344742,1714745461602,-151.0,0.00044,14]
[325344743,1714745461612,-151.0,0.00044,14]
[325344744,1714745461622,-151.0,0.00044,14]
[325344745,1714745461632,-151.0,0.00044,14]
[325344746,1714745461642,-151.0,0.00044,14]
[325344747,1714745461652,-151.0,0.00044,14]
[325344748,1714745461662,-151.0,0.00044,14]
[325344749,1714745461672,-151.0,0.00044,14]
[325344750,1714745461682,-310.546634,0.00044,14]
[325344751,1714745461692,-310.546634,0.00044,14]
[325344752,1714745461702,-310.546634,0.00044,14]
[325344753,1714745461711,-310.546634,0.00044,14]
[325344754,1714745461722,-500.0,0.00044,60]
[325344755,1714745461731,-151.0,0.00044,14]
[325344756,1714745461742,-151.0,0.00044,14]
[325344757,1714745461752,-151.0,0.00044,14]
[325344758,1714745461762,-151.0,0.00044,14]
[325344759,1714745461771,-151.0,0.00044,14]
[325344760,1714745461782,-151.0,0.00044,14]
[325344761,1714745461792,-151.0,0.00044,14]
[325344762,1714745461801,-151.0,0.00044,14]
[325344763,1714745461811,-234.381647,0.00044,14]
[325344764,1714745461821,-151.0,0.00044,14]
[325344765,1714745461830,-234.381647,0.00044,14]
[325344766,1714745461840,-151.0,0.00044,14]
[325344767,1714745461850,-234.381647,0.00044,14]
[325344768,1714745461861,-234.381647,0.00044,14]
[325344769,1714745461875,-1045.358258,0.00044,14]
[325344770,1714745461885,-1045.358258,0.00044,14]
[325344771,1714745461895,-753.039424,0.00044,14]
[325344772,1714745461907,-753.039424,0.00044,14]
[325344773,1714745461923,-1045.358258,0.00044,14]
[325344774,1714745461933,-1045.358258,0.00044,14]
[325344775,1714745461943,-753.039424,0.00044,14]
[325344776,1714745461955,-753.039424,0.00044,14]
[325344777,1714745461965,-151.0,0.00044,14]
[325344778,1714745461976,-151.0,0.00044,14]
[325344779,1714745461987,-467.840345,0.00044,14]
[325344780,1714745461998,-467.840345,0.00044,14]
[325344781,1714745462009,-467.840345,0.00044,14]
[325344782,1714745462218,-467.840345,0.00044,14]
[325344783,1714745462252,-444.727031,0.00044,14]
[325344784,1714745462263,-444.727031,0.00044,14]
[325344785,1714745462274,-444.727031,0.00044,14]
[325344786,1714745462283,-444.727031,0.00044,14]
[325344787,1714745462294,-277.541708,0.00044,14]
[325344788,1714745462304,-277.541708,0.00044,14]
[325344789,1714745462314,-477.770856,0.00044,14]
[325344790,1714745462324,-477.770856,0.00044,14]
[325344791,1714745462334,-277.541708,0.00044,14]
[325344792,1714745462344,-277.541708,0.00044,14]
[325344793,1714745462355,-151.0,0.00044,14]
[325344794,1714745462365,-151.0,0.00044,14]
[325344795,1714745462392,-477.770856,0.00044,14]
[325344796,1714745462403,-477.770856,0.00044,14]